bitfinex/quotes_BTCUSD_20230905
["timestamp","ask_amount","ask_price","bid_price","bid_amount"]
[1693948781063,0.33895835,25755.0,25754.0,2.28182813]
[1693948783543,0.19918098,25755.0,25754.0,2.28182813]
[1693948787790,0.25019615,25755.0,25754.0,2.28182813]
[1693948789233,0.19918098,25755.0,25754.0,2.28182813]
[1693948789919,0.25026265,25755.0,25754.0,2.28182813]
[1693948792876,0.19918098,25755.0,25754.0,2.28182813]
[1693948793084,0.25029586,25755.0,25754.0,2.28182813]
[1693948793295,0.19918098,25755.0,25754.0,2.28182813]
[1693948796522,0.33906229,25755.0,25754.0,2.28182813]
[1693948797286,0.33906035,25755.0,25754.0,2.28182813]
[1693948800151,0.19918098,25755.0,25754.0,2.28182813]
[1693948800348,0.3390594,25755.0,25754.0,2.28182813]
[1693948800810,0.19918098,25755.0,25754.0,2.28182813]
[1693948801404,0.33905979,25755.0,25754.0,2.28182813]
[1693948801775,0.19918098,25755.0,25754.0,2.28182813]
[1693948802773,0.33906028,25755.0,25754.0,2.28182813]
[1693948803542,0.19918098,25755.0,25754.0,2.28182813]
[1693948806176,0.33905897,25755.0,25754.0,2.28182813]
[1693948809437,0.19918098,25755.0,25754.0,2.28182813]
[1693948809615,0.3390586,25755.0,25754.0,2.28182813]
[1693948810541,0.19918098,25755.0,25754.0,2.28182813]
[1693948813964,0.15287574,25755.0,25754.0,2.28182813]
[1693948814383,0.33905672,25755.0,25754.0,2.28182813]
[1693948814787,0.15287574,25755.0,25754.0,2.28182813]
[1693948817874,0.15287574,25755.0,25754.0,1.58182813]
[1693948818476,0.33905672,25755.0,25754.0,1.58182813]
[1693948818858,0.15287574,25755.0,25754.0,1.58182813]
[1693948829425,0.15287574,25755.0,25754.0,0.80525013]
[1693948830943,0.15287574,25755.0,25754.0,1.50525013]
[1693948831960,0.15287574,25755.0,25754.0,2.28182813]
[1693948832584,0.15287574,25755.0,25754.0,2.29183068]
[1693948837441,0.24611863,25755.0,25754.0,2.29183068]
[1693948846796,0.24611863,25755.0,25754.0,1.59183068]
[1693948849655,0.24611863,25755.0,25754.0,2.29183068]
[1693948856153,0.24611863,25755.0,25754.0,3.06840868]
[1693948857475,0.24611863,25755.0,25754.0,2.29183068]
[1693948858068,0.24611863,25755.0,25754.0,3.06840868]
[1693948861734,0.10624289,25755.0,25754.0,3.06840868]
[1693948865265,0.013,25755.0,25754.0,3.06840868]
[1693948866090,0.013,25755.0,25754.0,3.06740868]
[1693948866307,0.23311863,25757.0,25754.0,3.45805395]
[1693948866499,0.09324289,25757.0,25756.0,0.0028]
[1693948866720,0.09324289,25757.0,25756.0,3.808872]
[1693948866923,0.09324289,25757.0,25756.0,3.84274831]
[1693948868240,0.10624289,25757.0,25756.0,3.84374831]
[1693948869586,0.11924289,25757.0,25756.0,4.23139358]
[1693948869792,0.026,25757.0,25756.0,4.23139358]
[1693948891308,0.026,25757.0,25756.0,5.45651158]
[1693948891645,0.02511903,25757.0,25756.0,5.54975458]
[1693948892069,0.04964705,25760.0,25756.0,5.54975458]
[1693948892279,0.04964705,25760.0,25757.0,0.38664527]
[1693948892450,0.04964705,25760.0,25759.0,0.0028]
[1693948892677,0.04964705,25760.0,25759.0,1.16587227]
[1693948892875,0.13987574,25763.0,25761.0,0.0028]
[1693948892876,0.23311863,25763.0,25761.0,0.0028]
[1693948893109,0.23311863,25763.0,25762.0,0.776337]
[1693948893254,0.23311863,25763.0,25762.0,1.552674]
[1693948893491,0.09324289,25763.0,25762.0,1.5860327]
[1693948893692,0.23311863,25763.0,25762.0,1.5860327]
[1693948894004,0.09324289,25763.0,25762.0,1.5860327]
[1693948894900,0.10124289,25763.0,25762.0,1.5880327]
[1693948895072,0.11124289,25763.0,25762.0,1.5900327]
[1693948895949,0.11124289,25763.0,25762.0,1.59031184]
[1693948896353,0.11124289,25763.0,25762.0,2.29031184]
[1693948896656,0.11124289,25763.0,25762.0,1.51397484]
[1693948897503,0.018,25763.0,25762.0,1.51397484]
[1693948898087,0.11124289,25763.0,25762.0,1.51397484]
[1693948898511,0.018,25763.0,25762.0,1.51397484]
[1693948901922,0.018,25763.0,25762.0,0.73763784]
[1693948902568,0.018,25763.0,25762.0,1.51397484]
[1693948903814,0.018,25763.0,25762.0,1.51677484]
[1693948904390,0.018,25763.0,25762.0,0.81677484]
[1693948904946,0.018,25763.0,25762.0,0.04043784]
[1693948909430,0.794307,25763.0,25762.0,0.04043784]
[1693948911554,0.018,25763.0,25762.0,0.04043784]
[1693948912297,0.018,25763.0,25762.0,0.81677484]
[1693948913291,0.018,25763.0,25762.0,0.04043784]
[1693948913489,0.794307,25763.0,25762.0,0.04043784]
[1693948919416,0.794307,25763.0,25762.0,0.74043784]
[1693948923584,0.018,25763.0,25762.0,0.74043784]
[1693948924136,0.018,25763.0,25762.0,1.51677484]
[1693948927549,0.018,25763.0,25762.0,2.29311184]
[1693948928316,0.018,25763.0,25762.0,3.06944884]
[1693948931648,0.008,25763.0,25762.0,3.06744884]
[1693948931855,0.018,25763.0,25762.0,3.06844884]
[1693948932169,0.018,25763.0,25762.0,3.45509411]
[1693948932369,0.008,25763.0,25762.0,3.45409411]
[1693948932615,0.11304289,25764.0,25762.0,3.45209411]
[1693948932813,0.11304289,25764.0,25763.0,0.779107]
[1693948932971,0.11304289,25764.0,25763.0,0.8124629]
[1693948933177,0.11304289,25764.0,25763.0,1.5124629]
[1693948934078,0.16667574,25764.0,25763.0,1.51474189]
[1693948934472,0.25979129,25764.0,25763.0,1.51474189]
[1693948934672,0.11991555,25764.0,25763.0,3.45400116]
[1693948934872,0.0368,25764.0,25763.0,3.45400116]
[1693948935254,0.0268,25764.0,25763.0,3.45400116]
[1693948935432,0.11991555,25764.0,25763.0,3.45400116]
[1693948935627,0.10911555,25764.0,25763.0,3.45600116]
[1693948936442,0.016,25764.0,25763.0,2.67969416]
[1693948938900,0.016,25764.0,25763.0,3.45600116]
[1693948939519,0.007,25764.0,25763.0,3.45400116]
[1693948939735,0.09311555,25766.0,25763.0,3.45200116]
[1693948939950,0.09311555,25766.0,25765.0,0.0028]
[1693948940352,0.09311555,25766.0,25765.0,0.7028]
[1693948940556,0.09311555,25766.0,25765.0,1.51239629]
[1693948940986,0.09311555,25766.0,25765.0,1.51267465]
[1693948941192,0.10011555,25766.0,25765.0,1.51367465]
[1693948941510,0.10811555,25766.0,25765.0,1.51467465]
[1693948942654,0.10811555,25766.0,25765.0,0.73842865]
[1693948943084,0.015,25766.0,25765.0,2.67756592]
[1693948944105,0.00032,25767.0,25765.0,2.67556592]
[1693948944300,0.002,25766.0,25765.0,2.67556592]
[1693948944506,0.003,25766.0,25765.0,2.67556592]
[1693948944897,0.00032,25767.0,25766.0,0.0028]
[1693948945239,0.00332,25767.0,25766.0,1.479016]
[1693948945659,0.00032,25767.0,25766.0,1.479016]
[1693948945995,0.00832,25767.0,25766.0,1.48029405]
[1693948946588,0.01532,25767.0,25766.0,1.48129405]
[1693948946918,0.01532,25767.0,25766.0,2.25751005]
[1693948947123,0.2189142,25767.0,25766.0,0.70507805]
[1693948947530,0.31202975,25767.0,25766.0,0.70507805]
[1693948949370,0.31202975,25767.0,25766.0,0.00507805]
[1693948953480,0.31202975,25767.0,25766.0,0.03666956]
[1693948954232,1.08821575,25767.0,25766.0,0.03666956]
[1693948954990,1.08821575,25767.0,25766.0,0.03386956]
[1693948954991,2.90172899,25767.0,25766.0,0.03386956]
[1693948955191,2.91491868,25767.0,25766.0,0.03386956]
[1693948955456,3.01129843,25767.0,25766.0,0.00227805]
[1693948955860,3.01129843,25767.0,25766.0,0.002]
[1693948961556,3.01129843,25767.0,25766.0,0.03345898]
[1693948961936,3.01129843,25767.0,25766.0,0.03373703]
[1693948962343,3.2273394,25767.0,25766.0,0.03373703]
[1693948963375,3.94140347,25767.0,25766.0,0.03373703]
[1693948963981,3.94140347,25767.0,25766.0,0.002]
[1693948964177,3.94140347,25767.0,25766.0,0.001]
[1693948964178,3.93340347,25767.0,25766.0,0.001]
[1693948964648,3.92640347,25767.0,25763.0,0.0028]
[1693948964855,0.23268862,25764.0,25763.0,0.0028]
[1693948964985,2.56151662,25764.0,25763.0,0.0028]
[1693948965450,2.72310852,25764.0,25763.0,0.0028]
[1693948966013,2.73210852,25764.0,25763.0,0.0038]
[1693948966363,2.74210852,25764.0,25763.0,0.0048]
[1693948968476,2.74210852,25764.0,25763.0,0.03800906]
[1693948969521,2.64903307,25764.0,25763.0,0.03800906]
[1693948969771,2.74210971,25764.0,25763.0,0.03800906]
[1693948970550,2.74210971,25764.0,25763.0,0.03520906]
[1693948970770,2.74210971,25764.0,25763.0,0.03800906]
[1693948971713,2.64903307,25764.0,25763.0,0.03800906]
[1693948979379,3.03567834,25764.0,25763.0,0.03800906]
[1693948979797,2.74209713,25764.0,25763.0,0.03800906]
[1693948989903,2.64903307,25764.0,25763.0,0.03800906]
[1693948993665,2.83518397,25764.0,25763.0,0.03800906]
[1693948996669,2.6955708,25764.0,25763.0,0.03800906]
[1693948997889,2.74706715,25764.0,25763.0,0.03800906]
[1693948998701,2.97975577,25764.0,25763.0,0.03800906]
[1693948998899,2.74706715,25764.0,25763.0,0.03800906]
[1693949000025,2.97975577,25764.0,25763.0,0.03800906]
[1693949000871,2.79360487,25764.0,25763.0,0.03800906]
[1693949014672,2.56091625,25764.0,25763.0,0.03800906]
[1693949018388,2.56091625,25764.0,25763.0,0.03520906]
[1693949018595,2.56091625,25764.0,25763.0,0.03800906]
[1693949047050,2.94756152,25764.0,25763.0,0.03800906]
[1693949048801,4.00889089,25764.0,25763.0,0.03520906]
[1693949049000,4.67389209,25764.0,25763.0,0.03520906]
[1693949049177,4.62375209,25764.0,25763.0,0.002]
[1693949049566,4.61375209,25764.0,25763.0,0.001]
[1693949049792,4.61375209,25764.0,25763.0,0.003]
[1693949050004,4.62975209,25764.0,25763.0,0.002]
[1693949050205,4.65475209,25764.0,25763.0,0.004]
[1693949050421,0.04,25760.0,25758.0,0.0028]
[1693949050626,3.43181964,25759.0,25758.0,0.0028]
[1693949051059,3.24547013,25759.0,25758.0,0.00310609]
[1693949051267,3.4060388,25759.0,25758.0,0.00310609]
[1693949051831,3.49918202,25759.0,25758.0,0.00310609]
[1693949052235,3.49918202,25759.0,25758.0,0.03439394]
[1693949052457,3.4060388,25759.0,25758.0,0.03439394]
[1693949052901,3.4150388,25759.0,25758.0,0.03539394]
[1693949053261,3.4230388,25759.0,25758.0,0.03639394]
[1693949053907,3.51615835,25759.0,25758.0,0.03639394]
[1693949056939,3.37639622,25759.0,25758.0,0.03639394]
[1693949057697,3.51615835,25759.0,25758.0,0.03639394]
[1693949057907,3.37639622,25759.0,25758.0,0.03639394]
[1693949058311,3.21582755,25759.0,25758.0,0.03639394]
[1693949058513,3.35558968,25759.0,25758.0,0.03639394]
[1693949059179,3.21582755,25759.0,25758.0,0.00510609]
[1693949059980,3.21582755,25759.0,25758.0,0.0048]
[1693949061243,3.60247282,25759.0,25758.0,0.0048]
[1693949061848,3.6491154,25759.0,25758.0,0.0048]
[1693949062515,3.74218498,25759.0,25758.0,0.0048]
[1693949063353,3.60242285,25759.0,25758.0,0.0048]
[1693949063555,3.6491154,25759.0,25758.0,0.0048]
[1693949063758,3.74217898,25759.0,25758.0,0.0048]
[1693949065885,3.60241685,25759.0,25758.0,0.0048]
[1693949066087,3.7807758,25759.0,25758.0,0.0048]
[1693949067004,3.60241685,25759.0,25758.0,0.0048]
[1693949067960,3.83527485,25759.0,25758.0,0.0048]
[1693949068161,3.69570278,25759.0,25758.0,0.0048]
[1693949068359,3.83527544,25759.0,25758.0,0.0048]
[1693949069890,3.64892593,25759.0,25758.0,0.0048]
[1693949072105,3.74195403,25759.0,25758.0,0.0048]
[1693949072766,3.77245144,25759.0,25758.0,0.0048]
[1693949076871,3.63287878,25759.0,25758.0,0.0048]
[1693949079570,3.77245144,25759.0,25758.0,0.0048]
[1693949080641,3.94601581,25759.0,25758.0,0.0048]
[1693949080815,3.94601581,25759.0,25758.0,0.002]
[1693949081026,3.55937054,25759.0,25758.0,0.0048]
[1693949082013,3.55937054,25759.0,25758.0,0.03645227]
[1693949085511,3.46634244,25759.0,25758.0,0.03645227]
[1693949085826,3.46634244,25759.0,25758.0,0.03365227]
[1693949085959,3.46634244,25759.0,25758.0,0.03645227]
[1693949086159,3.46634244,25759.0,25758.0,0.00510609]
[1693949086605,3.46634244,25759.0,25758.0,0.03645285]
[1693949086812,3.46634244,25759.0,25758.0,0.00510609]
[1693949087014,3.46634244,25759.0,25758.0,0.0048]
[1693949089560,3.29277807,25759.0,25758.0,0.0048]
[1693949089686,3.46393983,25759.0,25758.0,0.0048]
[1693949089890,3.65028934,25759.0,25758.0,0.0048]
[1693949090095,3.56119599,25759.0,25758.0,0.0048]
[1693949092069,3.60778337,25759.0,25758.0,0.0048]
[1693949094011,3.37484648,25759.0,25758.0,0.0048]
[1693949096404,3.76149175,25759.0,25758.0,0.0048]
[1693949097254,3.91687375,25759.0,25758.0,0.0048]
[1693949097654,3.91687375,25759.0,25758.0,0.002]
[1693949097858,3.91687375,25759.0,25758.0,0.0048]
[1693949098214,3.90787375,25759.0,25758.0,0.0038]
[1693949098419,3.89987375,25759.0,25758.0,0.0028]
[1693949098628,3.92387375,25759.0,25758.0,0.0048]
[1693949098831,3.94787375,25759.0,25758.0,0.0068]
[1693949099864,3.92387375,25759.0,25758.0,0.0048]
[1693949100049,3.94787375,25759.0,25758.0,0.0068]
[1693949100657,3.76396758,25759.0,25758.0,0.0068]
[1693949100881,3.60858558,25759.0,25758.0,0.0068]
[1693949101288,3.60858558,25759.0,25758.0,0.03535035]
[1693949101494,3.79498476,25759.0,25758.0,0.03815035]
[1693949101876,3.55810627,25759.0,25758.0,0.03815035]
[1693949101984,3.79547093,25759.0,25758.0,0.03844254]
[1693949102617,3.60906934,25759.0,25758.0,0.03844254]
[1693949104628,3.795478,25759.0,25758.0,0.03844254]
[1693949104981,3.60906934,25759.0,25758.0,0.03844254]
[1693949105976,3.79548134,25759.0,25758.0,0.03844254]
[1693949107270,3.60906934,25759.0,25758.0,0.03844254]
[1693949124679,3.60906934,25759.0,25758.0,0.03564254]
[1693949124888,3.60906934,25759.0,25758.0,0.03844254]
[1693949142389,3.60906934,25759.0,25758.0,0.03564254]
[1693949142592,3.60906934,25759.0,25758.0,0.03844254]
[1693949143342,3.37606735,25759.0,25758.0,0.03844254]
[1693949143471,3.60912161,25759.0,25758.0,0.03844254]
[1693949143844,3.37606735,25759.0,25758.0,0.03844254]
[1693949159178,3.37280668,25759.0,25758.0,0.03844254]
[1693949185188,3.37231955,25759.0,25758.0,0.03844254]
[1693949205088,0.33160492,25759.0,25758.0,0.03844254]
[1693949205471,0.33160492,25759.0,25758.0,1.59135654]
[1693949205689,0.46762589,25759.0,25758.0,1.59135654]
[1693949205888,0.51810232,25759.0,25758.0,2.36781354]
[1693949206053,0.28497383,25759.0,25758.0,2.36781354]
[1693949206266,0.2344974,25759.0,25758.0,3.06781354]
[1693949206551,0.048,25759.0,25758.0,3.06781354]
[1693949206771,0.23308219,25759.0,25758.0,3.06381354]
[1693949206880,0.25808219,25759.0,25758.0,3.06581354]
[1693949207089,0.14222992,25759.0,25758.0,3.06781354]
[1693949207290,0.11722992,25759.0,25758.0,3.06581354]
[1693949207489,0.14222992,25759.0,25758.0,3.06781354]
[1693949208327,0.025,25759.0,25758.0,3.06581354]
[1693949208696,0.042,25759.0,25758.0,3.06681354]
[1693949208907,0.017,25759.0,25758.0,3.06481354]
[1693949209165,0.007,25759.0,25758.0,3.06481354]
[1693949209374,0.015,25759.0,25758.0,3.06581354]
[1693949213737,0.015,25759.0,25758.0,3.45245881]
[1693949226513,0.015,25759.0,25758.0,2.67600181]
[1693949231351,0.015,25759.0,25758.0,3.26460181]
[1693949231590,0.015,25759.0,25758.0,4.34105881]
[1693949232500,0.04909295,25764.0,25763.0,0.0028]
[1693949232657,0.04909295,25764.0,25763.0,0.85745811]
[1693949232814,1.64575792,25765.0,25763.0,0.74043204]
[1693949233018,1.64575792,25765.0,25763.0,0.04072803]
[1693949233237,1.64575792,25765.0,25764.0,0.0028]
[1693949234011,1.67075792,25765.0,25764.0,0.0028]
[1693949234511,1.67075792,25765.0,25764.0,0.7028]
[1693949235134,1.64575792,25765.0,25764.0,0.7028]
[1693949235308,1.64575792,25765.0,25764.0,0.0028]
[1693949235517,1.66975792,25765.0,25764.0,0.0048]
[1693949235720,1.69375792,25765.0,25764.0,0.0068]
[1693949235918,0.14122992,25765.0,25764.0,0.0068]
[1693949236550,0.91747592,25765.0,25764.0,0.0068]
[1693949236749,0.91747592,25765.0,25764.0,0.7068]
[1693949237166,0.91747592,25765.0,25764.0,0.70709562]
[1693949237785,0.824246,25765.0,25764.0,0.70709562]
[1693949238124,0.91747592,25765.0,25764.0,0.70709562]
[1693949238524,0.91747592,25765.0,25764.0,0.74472766]
[1693949239754,0.824246,25765.0,25764.0,0.74472766]
[1693949242172,0.048,25765.0,25764.0,0.74472766]
[1693949242579,0.824246,25765.0,25764.0,0.74472766]
[1693949245747,0.048,25765.0,25764.0,1.52100366]
[1693949246804,0.024,25765.0,25764.0,1.51900366]
[1693949247190,0.049,25765.0,25764.0,1.52100366]
[1693949247605,1.86067445,25766.0,25764.0,1.51700366]
[1693949247809,1.86067445,25766.0,25765.0,0.0028]
[1693949247962,1.86067445,25766.0,25765.0,0.70309525]
[1693949249174,1.88567445,25766.0,25765.0,0.70509525]
[1693949249933,1.90967445,25766.0,25765.0,0.70509525]
[1693949250153,1.90967445,25766.0,25765.0,0.00509525]
[1693949250452,1.88567445,25766.0,25765.0,0.00509525]
[1693949250619,1.90967445,25766.0,25765.0,0.00709525]
[1693949253640,1.90967445,25766.0,25765.0,0.04472666]
[1693949255111,1.90967445,25766.0,25765.0,0.74472666]
[1693949255317,0.14222992,25766.0,25765.0,0.74472666]
[1693949257183,0.91844592,25766.0,25765.0,0.74472666]
[1693949257382,0.14222992,25766.0,25765.0,2.29721866]
[1693949257537,0.14222992,25766.0,25765.0,3.07346466]
[1693949258398,0.11722992,25766.0,25765.0,3.07146466]
[1693949258804,0.11022992,25766.0,25765.0,3.07046466]
[1693949259046,0.09322992,25766.0,25765.0,3.06946466]
[1693949259246,0.11822992,25766.0,25765.0,3.07146466]
[1693949259659,0.09322992,25766.0,25765.0,3.06946466]
[1693949261020,0.09303771,25766.0,25765.0,3.06946466]
[1693949262070,0.23291428,25767.0,25766.0,0.0028]
[1693949262270,0.09335771,25767.0,25766.0,2.255232]
[1693949263084,0.10135771,25767.0,25766.0,1.48031087]
[1693949264152,0.24091428,25767.0,25766.0,1.48031087]
[1693949264384,0.24891428,25767.0,25766.0,1.48131087]
[1693949264790,0.10935771,25767.0,25766.0,1.48131087]
[1693949264969,0.24891428,25767.0,25766.0,1.48131087]
[1693949268692,0.24891428,25767.0,25766.0,1.51690653]
[1693949269430,0.15587657,25767.0,25766.0,1.51690653]
[1693949269612,0.24892888,25767.0,25766.0,1.51690653]
[1693949270876,0.15587657,25767.0,25766.0,1.51690653]
[1693949275658,0.341952,25767.0,25766.0,1.51690653]
[1693949276702,0.2538216,25767.0,25766.0,1.51690653]
[1693949279434,0.2538216,25767.0,25766.0,0.74069053]
[1693949280430,0.3421009,25767.0,25766.0,2.29312253]
[1693949280647,0.53942651,25767.0,25766.0,0.74069053]
[1693949280921,0.53942772,25767.0,25766.0,0.74069053]
[1693949281143,2.47948001,25767.0,25766.0,0.19527044]
[1693949281357,3.26894601,25767.0,25766.0,0.03789053]
[1693949281575,3.60774331,25767.0,25766.0,0.03789053]
[1693949281777,3.60774331,25767.0,25766.0,0.00229487]
[1693949281778,3.53304331,25767.0,25766.0,0.00229487]
[1693949281908,3.26835827,25767.0,25766.0,0.00229487]
[1693949282115,3.19465827,25767.0,25766.0,0.001]
[1693949282311,3.19465827,25767.0,25761.0,0.12810459]
[1693949282312,0.04,25766.0,25761.0,0.12810459]
[1693949282509,0.09314978,25762.0,25761.0,0.12810459]
[1693949282719,1.64582378,25762.0,25761.0,0.12810459]
[1693949283095,1.64582378,25762.0,25761.0,0.12838793]
[1693949283296,1.64582378,25762.0,25761.0,0.16589963]
[1693949283495,2.42216078,25762.0,25761.0,0.16589963]
[1693949283708,2.42216078,25762.0,25761.0,0.03779504]
[1693949283919,2.42916078,25762.0,25761.0,0.03879504]
[1693949284570,2.43616078,25762.0,25761.0,0.03979504]
[1693949290121,2.48273567,25762.0,25761.0,0.03979504]
[1693949290374,1.65978402,25762.0,25761.0,0.03979504]
[1693949290978,1.65977266,25762.0,25761.0,0.03979504]
[1693949294986,0.014,25762.0,25761.0,0.22532025]
[1693949295188,0.014,25762.0,25761.0,1.00168725]
[1693949295709,0.014,25762.0,25761.0,1.77805425]
[1693949305221,0.014,25762.0,25761.0,2.94106652]
[1693949310891,0.014,25762.0,25761.0,3.64106652]
[1693949317314,0.014,25762.0,25761.0,2.94106652]
[1693949325836,0.10709866,25762.0,25761.0,2.16469952]
[1693949327410,0.10709866,25762.0,25761.0,1.38833252]
[1693949332912,0.10709866,25762.0,25761.0,0.61196552]
[1693949333320,1.02308365,25762.0,25761.0,0.61196552]
[1693949338764,0.92998499,25762.0,25761.0,0.61196552]
[1693949339370,1.02318842,25762.0,25761.0,0.61196552]
[1693949339693,0.92998499,25762.0,25761.0,0.61196552]
[1693949340056,1.023193,25762.0,25761.0,0.61196552]
[1693949340430,0.92998499,25762.0,25761.0,0.61196552]
[1693949341098,1.02319774,25762.0,25761.0,0.61196552]
[1693949341298,1.70632199,25762.0,25761.0,0.61196552]
[1693949354434,0.15364799,25762.0,25761.0,0.61196552]
[1693949354638,0.10720669,25762.0,25761.0,1.38833252]
[1693949356441,0.10720669,25762.0,25761.0,0.61196552]
[1693949356820,0.88354369,25762.0,25761.0,0.61196552]
[1693949359402,0.10720669,25762.0,25761.0,0.61196552]
[1693949359829,0.10720669,25762.0,25761.0,1.31196552]
[1693949360575,0.10720669,25762.0,25761.0,2.08833252]
[1693949363346,0.10720669,25762.0,25761.0,1.38833252]
[1693949364196,0.10720669,25762.0,25761.0,0.61196552]
[1693949368419,0.88354369,25762.0,25761.0,0.61196552]
[1693949370241,2.43621769,25762.0,25761.0,0.61196552]
[1693949370443,2.48265899,25762.0,25761.0,0.03979504]
[1693949372366,2.66885631,25762.0,25761.0,0.03979504]
[1693949373254,2.48265899,25762.0,25761.0,0.03979504]
[1693949373430,2.66885631,25762.0,25761.0,0.03979504]
[1693949374229,2.48265899,25762.0,25761.0,0.03979504]
[1693949387237,1.70632199,25762.0,25761.0,0.03979504]
[1693949398864,1.79952001,25762.0,25761.0,0.03979504]
[1693949399627,1.70632199,25762.0,25761.0,0.03979504]
[1693949401985,0.88353479,25762.0,25761.0,0.24840421]
[1693949402228,0.88353479,25762.0,25761.0,0.63504948]
[1693949402229,0.10719779,25762.0,25761.0,0.63504948]
[1693949402432,0.10719779,25762.0,25761.0,2.96415048]
[1693949402766,0.10719779,25762.0,25761.0,3.66415048]
[1693949405801,0.014,25762.0,25761.0,3.66415048]
[1693949410510,0.007,25762.0,25761.0,3.66315048]
[1693949410953,0.09319779,25763.0,25761.0,3.66215048]
[1693949411135,0.09319779,25763.0,25762.0,0.38664527]
[1693949411290,0.09319779,25763.0,25762.0,3.41565627]
[1693949411693,0.09319779,25763.0,25762.0,3.47479669]
[1693949412645,0.09319779,25763.0,25762.0,3.47579669]
[1693949412992,0.09319779,25763.0,25762.0,3.47779669]
[1693949414838,0.23284578,25764.0,25762.0,3.47779669]
[1693949415592,0.23284578,25764.0,25762.0,3.47679669]
[1693949415795,0.09319779,25764.0,25762.0,3.47679669]
[1693949416000,0.09319779,25764.0,25762.0,3.47779669]
[1693949416158,0.23284578,25764.0,25762.0,3.47779669]
[1693949416367,0.09319779,25764.0,25762.0,3.47579669]
[1693949416604,0.23284578,25764.0,25762.0,3.47579669]
[1693949416805,0.23284578,25764.0,25762.0,3.47779669]
[1693949416806,0.09319779,25764.0,25762.0,3.47779669]
[1693949417606,0.09319779,25764.0,25763.0,0.96041665]
[1693949417812,0.09319779,25764.0,25763.0,1.34706192]
[1693949418863,0.10119779,25764.0,25763.0,1.34806192]
[1693949419121,0.10819779,25764.0,25763.0,1.34906192]
[1693949419498,0.10819779,25764.0,25763.0,2.12536892]
[1693949420682,0.015,25764.0,25763.0,2.12536892]
[1693949421087,0.37545564,25767.0,25763.0,3.28082438]
[1693949421289,0.37545564,25767.0,25765.0,0.02]
[1693949421290,0.0494931,25767.0,25765.0,0.02]
[1693949421500,0.0494931,25767.0,25766.0,2.71529327]
[1693949421700,0.00032,25767.0,25766.0,3.49150927]
[1693949422299,0.00032,25767.0,25766.0,4.10010927]
[1693949422300,0.04832,25767.0,25766.0,4.10010927]
[1693949422546,0.04832,25767.0,25766.0,5.10010927]
[1693949422547,0.02432,25767.0,25766.0,5.10010927]
[1693949422715,0.00032,25767.0,25766.0,5.10038638]
[1693949422918,0.00232,25767.0,25766.0,5.12038638]
[1693949423520,0.00432,25767.0,25766.0,5.14538638]
[1693949423725,0.00232,25767.0,25766.0,5.12038638]
[1693949424575,0.00032,25767.0,25766.0,5.10038638]
[1693949424968,0.00032,25767.0,25766.0,5.12538638]
[1693949424969,0.00232,25767.0,25766.0,5.12538638]
[1693949425184,0.00232,25767.0,25766.0,5.15038638]
[1693949425185,0.00432,25767.0,25766.0,5.15038638]
[1693949435037,0.00432,25767.0,25766.0,4.72178638]
[1693949435247,0.00432,25767.0,25766.0,3.94557038]
[1693949436647,0.00432,25767.0,25766.0,3.98000898]
[1693949437276,0.00489704,25767.0,25766.0,3.98000898]
[1693949443383,0.00489704,25767.0,25766.0,3.90000898]
[1693949460237,0.00489704,25767.0,25766.0,3.88000898]
[1693949470610,0.00489704,25767.0,25766.0,4.07000898]
[1693949472262,0.00489704,25767.0,25766.0,5.44750253]
[1693949472522,0.00489704,25767.0,25766.0,5.99571619]
[1693949472699,0.00489704,25767.0,25766.0,5.98719619]
[1693949472894,0.00489704,25767.0,25766.0,6.07756161]
[1693949473156,0.00489704,25767.0,25766.0,5.98299619]
[1693949473275,0.00489704,25767.0,25766.0,5.91369619]
[1693949473479,0.00489704,25767.0,25766.0,6.00634241]
[1693949473741,0.00489704,25767.0,25766.0,5.4474712]
[1693949478612,0.00489704,25767.0,25766.0,5.35482498]
[1693949479222,0.00489704,25767.0,25766.0,5.42124498]
[1693949479468,0.00489704,25767.0,25766.0,5.42094498]
[1693949479671,0.00489704,25767.0,25766.0,5.42088498]
[1693949479849,0.00489704,25767.0,25766.0,5.42748498]
[1693949480075,0.00489704,25767.0,25766.0,5.42208498]
[1693949480279,0.00489704,25767.0,25766.0,5.42202498]
[1693949480408,0.00489704,25767.0,25766.0,5.42172498]
[1693949480610,0.00489704,25767.0,25766.0,5.42154498]
[1693949480864,0.00489704,25767.0,25766.0,5.42148498]
[1693949481085,0.00489704,25767.0,25766.0,5.42142498]
[1693949481311,0.00489704,25767.0,25766.0,5.42292498]
[1693949481516,0.00489704,25767.0,25766.0,5.42196498]
[1693949481714,0.00489704,25767.0,25766.0,5.42190498]
[1693949481921,0.00489704,25767.0,25766.0,5.42202498]
[1693949482127,0.00489704,25767.0,25766.0,5.42220498]
[1693949482324,0.00489704,25767.0,25766.0,5.42232498]
[1693949482528,0.00489704,25767.0,25766.0,5.42208498]
[1693949482728,0.00489704,25767.0,25766.0,5.42220498]
[1693949482957,0.00489704,25767.0,25766.0,5.42232498]
[1693949483112,0.00489704,25767.0,25766.0,5.42268498]
[1693949483315,0.00489704,25767.0,25766.0,5.42256498]
[1693949483518,0.00489704,25767.0,25766.0,5.42250498]
[1693949483716,0.00489704,25767.0,25766.0,5.42232498]
[1693949483884,0.00489704,25767.0,25766.0,5.42484498]
[1693949484243,0.00489704,25767.0,25766.0,5.42478498]
[1693949484587,0.00489704,25767.0,25766.0,5.42472498]
[1693949484790,0.00489704,25767.0,25766.0,5.42460498]
[1693949485173,0.00489704,25767.0,25766.0,5.42454498]
[1693949485400,0.00489704,25767.0,25766.0,5.42448498]
[1693949485554,0.00489704,25767.0,25766.0,5.42574498]
[1693949485760,0.00489704,25767.0,25766.0,5.42538498]
[1693949485965,0.00489704,25767.0,25766.0,5.42550498]
[1693949486167,0.00489704,25767.0,25766.0,5.42544498]
[1693949486368,0.00489704,25767.0,25766.0,5.42610498]
[1693949486564,0.00489704,25767.0,25766.0,5.42616498]
[1693949486809,0.00489704,25767.0,25766.0,5.43719868]
[1693949486995,0.00489704,25767.0,25766.0,5.43713868]
[1693949487399,0.00489704,25767.0,25766.0,5.43707868]
[1693949487737,0.00489704,25767.0,25766.0,5.43701868]
[1693949487953,0.00489704,25767.0,25766.0,5.43689868]
[1693949488360,0.00489704,25767.0,25766.0,5.43725868]
[1693949488561,0.00489704,25767.0,25766.0,5.43695868]
[1693949488735,0.00489704,25767.0,25766.0,5.43683868]
[1693949488954,0.00489704,25767.0,25766.0,5.43677868]
[1693949489152,0.00489704,25767.0,25766.0,5.43509868]
[1693949489361,0.00489704,25767.0,25766.0,5.43503868]
[1693949489575,0.00489704,25767.0,25766.0,5.43455868]
[1693949489918,0.00489704,25767.0,25766.0,5.43449868]
[1693949490545,0.00489704,25767.0,25766.0,5.43383868]
[1693949490892,0.00489704,25767.0,25766.0,5.43485868]